Cogmind - Beta 12 X1 @@@ ROGUE MODE // 2022.08.05 @ 03:56:15 Player: Runia Result: Destroyed by Enhanced Grunt with Neutron Cannon Performance ------------- Evolutions (5) 2500 Regions Visited (25) 5000 Robots Destroyed (277) 1385 Value Destroyed (12952) 12952 Prototype IDs (239) 4780 Alien Tech Used (0) 0 Bonus (12546) 12546 TOTAL SCORE: 39163 Bonus ------- High Alert Combat Kills 1658 Follower Combat Kills 3707 Entered Garrisons 1000 Used RIF Installer 2500 Aligned with FarCom 300 Met Data Miner 300 Used Data Conduit 3000 Built Enhanced Grunts 300 A7 Reached Mainframe 300 Met R17 at Cetus 500 Friendly Fire -1019 Cogmind --------- Core Integrity 0/1000 Matter 171/300 Energy 333/350 System Corruption 8% Temperature Warning (321) Movement Treading (165) Location -5/Hub_04(d) Parts ------- > --- POWER (1) -------- Quantum Reactor > --- PROPULSION (4) --- Armored Heavy Treads Centrium Heavy Treads > --- UTILITY (9) ------ Huge Storage Unit Improved Transmission Jammer Centrium Medium Armor Plating Relay Coupler [NC] (3) Relay Coupler [Swarmer] (31) Relay Coupler [Grunt] (7) Relay Coupler [Brawler] (15) > --- WEAPON (3) ------- Heavy Beamcaster Railgun Advanced KE Penetrator > --- INVENTORY (25) --- Quantum Reactor Centrium Heavy Treads Coolant Injector Improved Coolant Injector Advanced Energy Well (500) Matter Compressor (250) Transmission Jammer Centrium Medium Armor Plating Advanced Force Field Relay Coupler [NC] (27) Relay Coupler [Duelist] (31) Relay Coupler [Demolisher] (26) Relay Coupler [Hunter] (22) Relay Coupler [Heavy] (11) Long-range Tractor Beam Wave Gun Advanced Variable Charge Gun Compact Linear Accelerator Compact Linear Accelerator Remote Datajack Improved Remote Datajack Plasma Cutter Plasma Lance Peak State ------------ > --- POWER ------------ Quantum Reactor > --- PROPULSION ------- Armored Heavy Treads Centrium Heavy Treads > --- UTILITY ---------- Huge Storage Unit Improved Transmission Jammer Hardened Heavy Armor Plating Centrium Medium Armor Plating Relay Coupler [NC] Relay Coupler [Swarmer] Relay Coupler [Grunt] Relay Coupler [Brawler] > --- WEAPON ----------- Railgun Advanced KE Penetrator Plasma Lance > --- INVENTORY -------- Quantum Reactor Centrium Heavy Treads Coolant Injector Improved Coolant Injector Advanced Energy Well Matter Compressor Transmission Jammer Centrium Medium Armor Plating Centrium Medium Armor Plating Advanced Force Field Relay Coupler [NC] Relay Coupler [Duelist] Relay Coupler [Demolisher] Relay Coupler [Hunter] Relay Coupler [Heavy] Long-range Tractor Beam Wave Gun Heavy Beamcaster Advanced Variable Charge Gun Compact Linear Accelerator Compact Linear Accelerator Remote Datajack Improved Remote Datajack Plasma Cutter [Rating: 115] Favorites ----------- Power Heavy Ion Engine Engine Heavy Ion Engine Power Core Fission Core Reactor Particle Reactor Propulsion Armored Wheel Treads Light Treads Leg Aluminum Leg Wheel Armored Wheel Utility Huge Storage Unit Device Advanced Heat Sink Storage Huge Storage Unit Processor Advanced Visual Processing Unit Hackware Relay Coupler [Brawler] Protection Light Armor Plating Weapon Compact Linear Accelerator Energy Gun Quantum Rifle Energy Cannon Advanced Beam Cannon Ballistic Gun Autogun Ballistic Cannon Compact Linear Accelerator Launcher Mini Grenade Launcher Special Weapon Remote Datajack Impact Weapon Heavy Mace Piercing Weapon Plasma Lance Special Melee Weapon Datajack Build | -11 -10 -10 -9 -9 -9 -8 -8 -8 -8 -8 -7 -7 -7 -6 -6 -6 -6 -6 -5 -5 -5 -5 -5 -5 -5 ------- Run | Scr Mat Min Mat Min Exi Min Mat Gar Mat Gar Fac Low Dat Pro Fac Gar Fac Gar Fac Gar Fac Ext Cet Arc Hub Slots Evolved 10 | . . . 2 . . . 2 . . . 2 . . . 2 . . . 2 . . . . . . Power . | . . . . . . . . . . . . . . . . . . . . . . . . . . Propulsion 2 | . . . 1 . . . . . . . 1 . . . . . . . . . . . . . . Utility 7 | . . . 1 . . . 2 . . . . . . . 2 . . . 2 . . . . . . Weapon 1 | . . . . . . . . . . . 1 . . . . . . . . . . . . . . Parts Attached 367 | 1 7 6 39 . 2 5 28 33 4 37 13 1 16 . 4 45 3 29 19 42 7 8 10 2 6 Power 19 | . 1 1 3 . . . 1 1 . 2 . . . . . 3 . 2 1 2 . 1 1 . . Engine 10 | . 1 1 3 . . . 1 . . 1 . . . . . . . 2 . 1 . . . . . Core 2 | . . . . . . . . . . . . . . . . 1 . . . . . 1 . . . Reactor 7 | . . . . . . . . 1 . 1 . . . . . 2 . . 1 1 . . 1 . . Propulsion 69 | . 2 3 19 . 2 . 4 9 . 3 1 . 3 . . 9 . 3 1 7 . . 3 . . Treads 50 | . 2 2 16 . . . 4 8 . 2 . . 1 . . 4 . 2 . 6 . . 3 . . Leg . | . . . . . . . . . . . . . . . . . . . . . . . . . . Wheel 19 | . . 1 3 . 2 . . 1 . 1 1 . 2 . . 5 . 1 1 1 . . . . . Hover . | . . . . . . . . . . . . . . . . . . . . . . . . . . Flight . | . . . . . . . . . . . . . . . . . . . . . . . . . . Utility 100 | . 2 . 6 . . 1 10 6 3 6 4 1 8 . 3 9 1 10 7 15 2 3 1 . 2 Device 39 | . 1 . 1 . . . 5 3 1 3 1 1 3 . . 6 . 4 3 5 1 . . . 1 Storage 5 | . 1 . 1 . . . . . . . . . . . . . . 2 . 1 . . . . . Processor 3 | . . . 1 . . . 1 . . . . . 1 . . . . . . . . . . . . Hackware 20 | . . . . . . . . . 1 1 1 . . . 2 3 1 3 2 3 1 2 . . . Protection 33 | . . . 3 . . 1 4 3 1 2 2 . 4 . 1 . . 1 2 6 . 1 1 . 1 Artifact . | . . . . . . . . . . . . . . . . . . . . . . . . . . Weapon 179 | 1 2 2 11 . . 4 13 17 1 26 8 . 5 . 1 24 2 14 10 18 5 4 5 2 4 Energy Gun 35 | . . . . . . . . . . 8 2 . 3 . . 6 . 5 2 5 2 . 1 . 1 Energy Cannon 22 | . . . 5 . . 1 5 5 1 . . . . . . 4 . 1 . . . . . . . Ballistic Gun 29 | 1 2 1 2 . . 1 4 3 . 6 . . . . . . . . 2 1 . . 3 1 2 Ballistic Cannon 9 | . . . . . . . . . . . 1 . 1 . . 2 . 1 . 3 . 1 . . . Launcher 24 | . . 1 3 . . 1 3 4 . 5 1 . . . . 6 . . . . . . . . . Special Weapon 34 | . . . . . . . . 1 . 2 2 . 1 . 1 3 1 7 5 6 2 2 . 1 . Impact Weapon 15 | . . . 1 . . 1 . 4 . 2 1 . . . . 3 1 . 1 1 . . . . . Slashing Weapon . | . . . . . . . . . . . . . . . . . . . . . . . . . . Piercing Weapon 6 | . . . . . . . . . . . . . . . . . . . . 2 1 1 1 . 1 Special Melee Weapon 5 | . . . . . . . 1 . . 3 1 . . . . . . . . . . . . . . Unidentified Prototypes 3 | . . . 2 . . . . . . . . . . . . . . . . 1 . . . . . Parts Lost 67 | . . . 3 . 1 1 7 1 . 5 1 . 1 . 3 20 . 4 10 8 . 1 . . 1 Power 10 | . . . 1 . . . . . . 2 . . . . . 2 . 1 2 1 . 1 . . . Propulsion 15 | . . . . . . . 1 . . 2 . . . . 1 7 . . 2 2 . . . . . Utility 25 | . . . . . 1 1 5 1 . . 1 . 1 . 2 7 . 1 1 3 . . . . 1 Weapon 17 | . . . 2 . . . 1 . . 1 . . . . . 4 . 2 5 2 . . . . . Highest Loss Streak 11 | . . . 2 . 1 1 3 1 . 2 1 . 1 . 3 11 . 2 4 4 . 1 . . 1 To Critical Strikes 1 | . . . . . . . . . . . . . . . . . . . 1 . . . . . . Average Slot Usage (%) 87 | . 87 100 99 100 88 86 91 97 90 87 83 84 74 84 82 71 93 91 78 79 82 81 82 76 81 Engine 4 | . 14 14 10 11 11 11 9 4 . 2 7 7 7 7 6 . . 2 1 2 5 . . . . Reactor 2 | . . . . . . . . 4 9 5 . . . . . 4 6 3 3 1 . . 4 5 5 Treads 12 | . 24 26 31 22 13 . 13 15 9 8 7 7 10 7 6 9 6 6 5 10 11 11 11 11 11 Wheel 7 | . . 1 1 11 19 33 13 9 9 8 15 15 9 15 12 7 13 13 10 1 . . . . . Device 11 | . 2 14 11 11 11 . 12 18 18 19 13 8 11 15 9 15 21 10 9 9 15 4 . . 4 Storage 8 | . 14 14 11 11 11 11 9 9 9 9 7 7 7 7 6 6 6 9 5 5 5 5 5 5 5 Processor 1 | . . . 4 . . . 6 6 . . . . . 7 6 1 . . . . . . . . . Hackware 9 | . . . . . . . . . 6 5 6 7 6 . 6 7 18 21 19 22 18 27 29 23 23 Protection 7 | . . . 6 11 11 12 9 10 11 8 9 13 10 7 12 . . 1 4 6 5 7 11 11 10 Energy Gun 2 | . 1 . . . . . . . . 3 2 7 4 7 3 4 8 8 5 3 2 . 2 . 2 Energy Cannon 3 | . . . 10 11 . 7 7 5 7 . . . . . . 2 6 6 . . . . . . . Ballistic Gun 4 | . 26 27 10 . . 7 9 8 9 9 . . . . . . . . . . . . 4 11 8 Ballistic Cannon 2 | . . . . . . . . . . . 6 7 3 7 6 2 . 1 . 5 8 5 2 . . Special Weapon 1 | . . . . . . . . 1 . 2 . . . . 3 1 . 1 4 2 2 4 2 4 . Impact Weapon 1 | . . . . 11 11 2 . 2 1 . . . . . . 2 3 . 2 1 . . . . . Naked Turns . | . . . . . . . . . . . . . . . . . . . . . . . . . . Heaviest Build 253 | 12 30 30 100 100 96 100 105 112 115 123 132 132 133 126 134 125 122 253 182 189 130 130 143 143 145 Greatest Support 150 | 20 40 40 63 12 36 36 36 12 12 75 24 24 150 75 24 130 24 24 24 150 130 130 140 140 140 Greatest Overweight (x) 15 | . . 2 8 8 7 2 8 9 9 10 5 5 5 5 9 5 5 10 13 15 . . 1 1 1 Average Overweight (x) 4 | . . . . 8 4 2 5 8 9 9 5 5 2 4 5 2 4 4 7 4 . . . 1 . Largest Inventory Capacity 30 | 8 15 15 25 25 25 25 25 25 25 25 25 25 25 25 25 25 25 30 30 30 25 25 25 25 25 Average Capacity 24 | 8 13 15 16 25 25 25 25 25 25 25 25 25 25 25 25 25 25 25 30 29 25 25 25 25 25 Most Carried 30 | 5 14 15 16 22 23 23 25 25 25 25 25 25 25 25 25 25 25 30 29 30 25 25 25 25 25 Average Carried 22 | 4 9 14 14 20 23 21 23 24 25 23 24 24 23 25 24 20 25 24 24 25 24 23 24 25 24 Final Capacity 30 | 8 15 15 25 25 25 25 25 25 25 25 25 25 25 25 25 25 25 30 30 25 25 25 25 25 25 Final Carried 30 | 3 14 14 16 22 23 21 25 25 25 25 25 25 25 25 24 25 25 30 22 24 25 25 25 25 24 Class Distribution -------------------- 32% | Mutant 27% | Botlord-Mutant 14% | Scavenger-Mutant 13% | Bothacker-Mutant Dominant Class ---------------- Mutant | -10/Materials Mutant | -10/Mines Mutant | -9/Materials Mutant | -9/Mines Mutant | -9/Exiles Mutant | -8/Mines Mutant | -8/Materials Scavenger-Mutant | -8/Garrison Mutant | -8/Materials Bothacker-Mutant | -8/Garrison Bothacker-Mutant | -7/Factory Bothacker-Mutant | -7/Lower Caves Scavenger-Tank | -7/Data Miner Scavenger-Gunner | -6/Proximity Caves Scavenger-Mutant | -6/Factory Bothacker-Mutant | -6/Garrison Bothacker-Mutant | -6/Factory Botlord-Mutant | -6/Garrison Botlord-Mutant | -5/Factory Botlord-Mutant | -5/Garrison Botlord-Mutant | -5/Factory Botlord-Mutant | -5/Extension Botlord-Mutant | -5/Cetus Botlord-Mutant | -5/Archives Botlord-Mutant | -5/Hub_04(d) Resources | -11 -10 -10 -9 -9 -9 -8 -8 -8 -8 -8 -7 -7 -7 -6 -6 -6 -6 -6 -5 -5 -5 -5 -5 -5 -5 ----------- Run | Scr Mat Min Mat Min Exi Min Mat Gar Mat Gar Fac Low Dat Pro Fac Gar Fac Gar Fac Gar Fac Ext Cet Arc Hub Matter Collected 10132 | 200 262 246 966 171 . 166 763 844 136 1051 53 302 359 7 129 1276 23 546 345 822 251 917 212 37 48 Remotely 1507 | . . . . . . . . . . . . . 290 . . 920 3 . . 294 . . . . . Salvage Created 12224 | . 299 16 2033 188 . 193 1110 907 349 1419 348 46 273 10 124 1456 . 1127 425 834 126 627 76 184 54 Parts 622 | . 21 3 121 5 . 21 68 54 22 73 15 8 11 . 3 52 . 45 18 41 7 21 5 5 3 Haulers Intercepted 9 | . 1 . 6 . . . 1 . . 1 . . . . . . . . . . . . . . . Recyclers Shooed 5 | . 1 . 2 . . . 1 . . . . . . . . . . . 1 . . . . . . Parts Field Recycled . | . . . . . . . . . . . . . . . . . . . . . . . . . . Retrieved Matter . | . . . . . . . . . . . . . . . . . . . . . . . . . . Parts Self-Destructed 7 | . . . . . . . . . . . . 7 . . . . . . . . . . . . . Prevented . | . . . . . . . . . . . . . . . . . . . . . . . . . . Kills | -11 -10 -10 -9 -9 -9 -8 -8 -8 -8 -8 -7 -7 -7 -6 -6 -6 -6 -6 -5 -5 -5 -5 -5 -5 -5 ------- Run | Scr Mat Min Mat Min Exi Min Mat Gar Mat Gar Fac Low Dat Pro Fac Gar Fac Gar Fac Gar Fac Ext Cet Arc Hub Combat Hostiles Destroyed 232 | . 8 3 42 . . 8 20 19 6 26 6 1 4 . 2 34 . 16 11 16 3 3 . 2 2 Melee 6 | . . . . . . . . . . . . . . . . . . . 1 2 . 3 . . . Guns 85 | . 8 1 12 . . 3 8 6 3 13 . 1 . . . 3 . 9 7 5 2 . . 2 2 Cannons 82 | . . . 20 . . 1 8 5 3 1 3 . 4 . 2 19 . 7 1 7 1 . . . . AOE 56 | . . 2 10 . . 4 4 8 . 12 3 . . . . 12 . . . 1 . . . . . Classes Destroyed 21 | . 4 2 7 . . 1 2 . . 3 . . . . . . . . . 2 . . . . . Worker 8 | . . 1 3 1 . . 2 . 1 . . . . . . . . . . . . . . . . Builder 4 | . . . 1 1 . . 1 . . . 1 . . . . . . . . . . . . . . Tunneler 2 | . . . . . . 1 1 . . . . . . . . . . . . . . . . . . Hauler 9 | . 1 . 6 . . . 1 . . 1 . . . . . . . . . . . . . . . Recycler 14 | . 1 . 2 2 . 2 2 . . . 2 . . . . . . . . . . 3 . . . Mechanic 2 | . . . 1 . . . . . . . 1 . . . . . . . . . . . . . . Operator 5 | . . . 3 . . . 1 . . . . . . . . . . . . . . 1 . . . Watcher 2 | . . . . . . . 1 1 . . . . . . . . . . . . . . . . . Swarmer 55 | . 6 . 7 . . 8 4 5 . 3 . . . . . 4 . 7 6 3 2 . . . . Cutter 5 | . . . . . . . . . . 3 . . . . . . . . . . . . . . 2 Grunt 104 | . 2 . 22 . . . 10 9 4 12 4 . . . 2 22 . 6 4 4 1 2 . . . Brawler 6 | . . . 1 . . . . . 1 1 . . . . . 3 . . . . . . . . . Duelist 7 | . . . 3 . . . . 1 . 1 . . . . . . . 1 1 . . . . . . Protector 1 | . . . 1 . . . . . . . . . . . . . . . . . . . . . . Sentry 28 | . . . 8 . . . 4 4 1 3 . . . . . 3 . . . . 1 1 1 2 . Specialist 1 | . . . . . . . . . . 1 . . . . . . . . . . . . . . . Hunter 2 | . . . . . . . 2 . . . . . . . . . . . . . . . . . . Programmer 14 | . . . . . . . . . . 2 2 1 . . . 2 . 2 . 5 . . . . . Enhanced Grunt 4 | . . . . . . . . . . . . . 4 . . . . . . . . . . . . Striker 2 | . . . . . . . . . . . . . . . . . . . . 2 . . . . . Executioner 2 | . . . . . . . . . . . . . . . . . . . . 2 . . . . . Decomposer 1 | . . . . . . . . . . . . . . 1 . . . . . . . . . . . Assembled 3 | . . 3 . . . . . . . . . . . . . . . . . . . . . . . Best Kill Streak 17 | . 7 3 10 2 . 6 13 4 3 4 8 1 2 . 2 17 . 5 4 5 2 2 . 2 2 Combat Bots Only 17 | . 3 2 8 . . 4 10 4 3 4 4 1 2 . 2 17 . 5 4 5 2 2 . 2 2 Max Kills in Single Turn 3 | . 1 1 3 1 . 3 3 3 1 3 3 1 1 1 1 2 . 1 2 1 1 1 1 1 1 Gunslinging . | . . . . . . . . . . . . . . . . . . . . . . . . . . Exploded 3 | . . 1 2 . . 3 2 3 . 3 2 . . . . 2 . . . 1 . . . . . Melee 1 | . . . . . . . . . . . . . . . . . . . 1 1 . 1 . . . Uniques/NPCs Destroyed . | . . . . . . . . . . . . . . . . . . . . . . . . . . Combat | -11 -10 -10 -9 -9 -9 -8 -8 -8 -8 -8 -7 -7 -7 -6 -6 -6 -6 -6 -5 -5 -5 -5 -5 -5 -5 -------- Run | Scr Mat Min Mat Min Exi Min Mat Gar Mat Gar Fac Low Dat Pro Fac Gar Fac Gar Fac Gar Fac Ext Cet Arc Hub Damage Taken 19345 | . 318 67 1460 . 125 216 1011 928 371 1815 422 47 795 . 633 3778 138 1056 1272 2866 697 480 119 231 500 Core 2466 | . 35 36 184 . 67 45 130 62 59 214 74 . . . 33 367 . 127 92 623 73 19 12 52 162 Absorbed by Shields 630 | . . . . . . . . 152 136 312 . . . . . . . . . . . . 30 . . Reduced by Siege Mode 474 | . . . . . . . . . . 27 5 . 70 . . 341 . 31 . . . . . . . Regen/Repaired (Parts) 637 | . . . . . . . . . . . 85 70 . . . . . . . . 140 342 . . . Core Remaining (%) 56 | 100 . 71 . . . 26 . . . 15 . . . 89 . . . 38 . . . . . . . Volleys Fired 1031 | . 26 7 122 . . 16 72 88 24 116 17 2 39 5 14 135 3 90 42 123 32 40 5 6 7 Largest 3 | . 2 2 2 . . 2 2 2 2 2 2 1 2 1 1 3 1 3 2 3 2 1 3 2 3 Hottest 282 | . 46 46 136 . . 91 143 105 105 124 169 94 169 94 94 239 5 282 129 209 162 70 240 68 151 Shots Fired 1533 | . 52 10 235 . . 28 138 132 48 170 25 3 46 6 14 146 3 140 53 165 37 40 10 11 21 Gun 681 | . 52 6 108 . . 12 64 62 24 122 8 3 28 6 1 16 . 37 22 68 6 . 5 10 21 Cannon 505 | . . . 118 . . 13 69 47 24 2 13 . 16 . 5 60 . 64 1 43 23 2 5 . . Launcher 65 | . . 4 9 . . 3 5 9 . 12 2 . . . . 21 . . . . . . . . . Special 282 | . . . . . . . . 14 . 34 2 . 2 . 8 49 3 39 30 54 8 38 . 1 . Kinetic 605 | . 52 6 108 . . 12 64 62 24 83 13 . 16 . 5 38 . 12 9 44 23 2 8 10 14 Thermal 746 | . . . 118 . . 13 69 61 24 75 8 3 30 6 1 85 . 120 16 102 6 . 2 . 7 Explosive 65 | . . 4 9 . . 3 5 9 . 12 2 . . . . 21 . . . . . . . . . Electromagnetic . | . . . . . . . . . . . . . . . . . . . . . . . . . . Robot Hit Streak 29 | . 8 3 13 . . 13 19 20 11 29 9 1 23 2 9 13 5 19 15 12 5 9 2 7 7 Robot Miss Streak 5 | . 4 2 4 . . 5 4 4 3 3 2 1 1 . 1 2 . 4 2 4 2 2 4 1 3 Penetration Max 1 | . . . . . . . 1 1 1 . . . . . . . . . . . . . 1 . . Secondary Targets 5 | . 3 . . . . . . . . . . . . . . . . . 1 . . . . . 1 Max Gunslinging Chain 1 | . 1 . . . . . . . . . . . . . . . . . 1 . . . . . 1 Shots Hit Robots 1100 | . 34 5 147 4 1 15 96 100 29 130 21 1 23 1 12 117 5 96 49 124 20 42 4 10 14 Core Hits 500 | . 13 8 73 1 . 12 47 46 11 66 17 1 12 1 2 91 . 40 9 26 6 5 1 4 8 Critical Kills 6 | . . . 1 . . . . 1 . . . . . . . . . 1 . . . . 1 2 . Critical Parts Destroyed 8 | . . . . 1 . 1 . 1 2 . . . . . . . . . 1 1 . . 1 . . Critical Strikes 31 | . . . 1 1 . 1 . 2 2 . 1 . 1 . 1 3 . 4 2 6 . 1 3 2 . Burn 3 | . . . . . . . . . . . . . . . . . . 2 1 . . . . . . Meltdown 2 | . . . 1 . . . . . . . . . . . . . . 1 . . . . . . . Destroy 8 | . . . . . . . . 2 2 . . . . . . . . . . . . . 2 2 . Blast 11 | . . . . . . . . . . . 1 . 1 . 1 3 . 1 . 3 . . 1 . . Smash 4 | . . . . 1 . 1 . . . . . . . . . . . . 1 1 . . . . . Sever 1 | . . . . . . . . . . . . . . . . . . . . 1 . . . . . Impale 2 | . . . . . . . . . . . . . . . . . . . . 1 . 1 . . . Melee Attacks 128 | . . . 1 5 1 4 . 15 . 14 6 . . . . 10 2 . 9 33 4 15 1 . 8 Impact 80 | . . . 1 5 1 4 . 15 . 11 2 . . . . 10 2 . 9 20 . . . . . Slashing . | . . . . . . . . . . . . . . . . . . . . . . . . . . Piercing 41 | . . . . . . . . . . . . . . . . . . . . 13 4 15 1 . 8 Sneak Attacks 24 | . . . . 4 1 1 . . . 1 4 . . . . . 2 . . 1 . 10 . . . Combat Hostiles 8 | . . . . . . . . . . . . . . . . . 2 . . . . 6 . . . Follow-up Attacks . | . . . . . . . . . . . . . . . . . . . . . . . . . . Damage Inflicted 32846 | . 511 244 4015 323 74 731 2294 2601 745 3357 1197 36 1233 29 288 5926 116 2315 861 3536 622 921 203 243 425 Guns 9493 | . 511 59 987 . . 83 782 943 391 1808 207 36 111 29 . 443 . 620 500 1162 76 . 125 243 377 Cannons 10716 | . . . 1685 . . 142 1001 620 354 50 471 . 1108 . 288 1884 . 1337 42 1110 546 . 78 . . Explosions 7808 | . . 179 1338 . . 298 511 772 . 1130 519 . . . . 3061 . . . . . . . . . Melee 3091 | . . . . 323 74 208 . 115 . . . . . . . . 116 . 294 992 . 921 . . 48 Ramming 11 | . . 6 5 . . . . . . . . . . . . . . . . . . . . . . Kinetic 11109 | . 511 59 987 . . 83 782 943 391 995 471 . 1108 . 288 1487 . 437 161 1138 546 . 203 243 276 Thermal 10942 | . . . 1800 . . 142 1001 771 354 1232 207 36 125 29 . 1378 . 1878 406 1406 76 . . . 101 Explosive 7693 | . . 179 1223 . . 298 511 772 . 1130 519 . . . . 3061 . . . . . . . . . Electromagnetic . | . . . . . . . . . . . . . . . . . . . . . . . . . . Impact 1649 | . . . . 323 74 208 . 115 . . . . . . . . 116 . 294 519 . . . . . Slashing . | . . . . . . . . . . . . . . . . . . . . . . . . . . Piercing 1442 | . . . . . . . . . . . . . . . . . . . . 473 . 921 . . 48 Highest Corruption 24 | . . . 2 2 2 2 . . . 3 2 2 2 2 3 22 22 24 . 6 8 8 8 8 8 Average Corruption 8 | . . . 1 2 2 2 . . . 2 1 2 2 2 3 21 22 23 . 4 7 8 8 8 8 Corruption Purged . | . . . . . . . . . . . . . . . . . . . . . . . . . . Corruption Blocked . | . . . . . . . . . . . . . . . . . . . . . . . . . . Effects 371 | . . . 2 16 6 7 . . . 26 4 4 9 4 2 84 7 73 . 23 19 48 26 5 6 Message Errors 87 | . . . . 5 1 2 . . . 3 . 1 3 2 1 19 2 17 . 5 3 14 3 2 4 Matter Fused 84 | . . . 1 6 3 1 . . . 7 2 . 1 . . 18 2 14 . 4 5 10 7 1 2 Heat Flow Errors 45 | . . . 1 3 . . . . . 7 . 1 1 . . 9 . 10 . 3 1 5 4 . . Energy Discharges 50 | . . . . 1 . 1 . . . 2 1 . . . 1 14 2 9 . 7 4 6 1 1 . Data Loss (minor) 53 | . . . . 1 2 1 . . . 1 . 1 3 1 . 8 1 8 . 2 5 11 7 1 . Data Loss (major) 13 | . . . . . . . . . . 1 . . 1 . . 6 . 2 . . . 2 1 . . Misfires 15 | . . . . . . . . . . . 1 1 . 1 . 3 . 4 . 1 1 . 3 . . Alerts 10 | . . . . . . 1 . . . 3 . . . . . 2 . 3 . 1 . . . . . Misdirections 2 | . . . . . . . . . . . . . . . . . . 2 . . . . . . . Weapon Failures 12 | . . . . . . 1 . . . 2 . . . . . 5 . 4 . . . . . . . Overload Shots 1 | . . . . . . . . . . . . . . . . . . . . . . . 1 . . Overflow Damage 1529 | . . . 88 195 73 144 57 60 . . 129 . 66 . 15 118 . 94 47 194 60 189 . . . Projectiles 555 | . . . 11 . . 2 16 9 . . 113 . 66 . 15 111 . 94 . 58 60 . . . . Explosions 213 | . . . 77 . . 21 41 51 . . 16 . . . . 7 . . . . . . . . . Melee 761 | . . . . 195 73 121 . . . . . . . . . . . . 47 136 . 189 . . . Knockbacks 47 | . . . . . 1 1 . . . . 3 . 9 . 2 11 1 2 5 9 2 . 1 . . Impact 6 | . . . . . 1 1 . . . . . . . . . . 1 . 3 . . . . . . Kinetic 39 | . . . . . . . . . . . 3 . 9 . 2 11 . 2 . 9 2 . 1 . . Secondary 2 | . . . . . . . . . . . . . . . . . . . 2 . . . . . . Self-Inflicted Damage 608 | . . 14 79 . . . 30 25 . 183 61 . . . . 216 . . . . . . . . . Shots 20 | . . 1 2 . . . 1 1 . 6 2 . . . . 7 . . . . . . . . . Rammed 5 | . . 2 3 . . . . . . . . . . . . . . . . . . . . . . Targets Rammed 5 | . . 2 3 . . . . . . . . . . . . . . . . . . . . . . Kicked . | . . . . . . . . . . . . . . . . . . . . . . . . . . Crushed . | . . . . . . . . . . . . . . . . . . . . . . . . . . Highest Temperature 351 | . 70 . 188 190 . 315 46 41 16 195 54 160 191 . . 198 . 343 190 197 195 196 327 54 351 Average Temperature 71 | . 23 . 26 87 . 126 12 12 5 69 22 88 46 . . 83 . 103 70 78 88 85 101 21 211 Received Heat Transfer 4864 | . 108 . 513 . . . 423 426 230 513 153 . . . 180 1305 18 237 216 210 148 99 4 27 54 Effects 2 | . . . . . . 1 . . . . . . . . . . . . . . . . . . 1 Shutdowns 1 | . . . . . . . . . . . . . . . . . . . . . . . . . 1 Energy Bleed 1 | . . . . . . 1 . . . . . . . . . . . . . . . . . . . Siege Activations 11 | . . . . . . . . . . 2 1 . 3 . . 3 . 2 . . . . . . . Total Turns 250 | . . . . . . . . . . 52 7 . 89 . . 69 . 33 . . . . . . . Longest Duration 46 | . . . . . . . . . . 46 7 . 45 . . 39 . 22 . . . . . . . Robots Corrupted . | . . . . . . . . . . . . . . . . . . . . . . . . . . Combat Hostiles . | . . . . . . . . . . . . . . . . . . . . . . . . . . Parts Fried 11 | . . . . 6 . 2 . . . . . . . . . . . . 1 2 . . . . . Impact Corruptions 20 | . . . . 5 6 3 . . . . . . . . . . . . 2 4 . . . . . Robots Melted 2 | . . . 1 . . . . . . . . . . . . . . 1 . . . . . . . Combat Hostiles . | . . . . . . . . . . . . . . . . . . . . . . . . . . Parts Melted 31 | . . . 11 . . . 2 1 . 1 . . . . . . . 9 2 5 . . . . . Heat Transferred 18902 | . . . 2986 . . 259 1850 1579 518 2331 222 37 259 37 . 2500 . 3034 629 2402 111 . . . 148 Parts Sabotaged . | . . . . . . . . . . . . . . . . . . . . . . . . . . Parts Stolen . | . . . . . . . . . . . . . . . . . . . . . . . . . . Parts Stripped . | . . . . . . . . . . . . . . . . . . . . . . . . . . Power Chain Reactions . | . . . . . . . . . . . . . . . . . . . . . . . . . . Missiles Intercepted . | . . . . . . . . . . . . . . . . . . . . . . . . . . Alert | -11 -10 -10 -9 -9 -9 -8 -8 -8 -8 -8 -7 -7 -7 -6 -6 -6 -6 -6 -5 -5 -5 -5 -5 -5 -5 ------- Run | Scr Mat Min Mat Min Exi Min Mat Gar Mat Gar Fac Low Dat Pro Fac Gar Fac Gar Fac Gar Fac Ext Cet Arc Hub Peak Influence 1126 | . 253 163 1114 449 . 216 318 995 484 1126 666 . . . 171 1091 594 981 606 1096 673 418 574 404 551 Initial 590 | . . 98 63 434 . . 7 109 484 175 590 . . . . 84 572 205 514 324 575 236 186 229 141 Average 445 | . 101 114 493 236 . 100 149 518 316 574 600 . . . 39 659 514 595 517 725 582 134 402 350 244 Maximum Alert Level 4 | . 1 . 4 2 . 1 1 3 2 4 2 . . . . 3 2 3 2 3 2 2 2 2 2 Low Security (%) 25 | 100 78 100 35 40 . 68 71 18 . 8 . . . . 100 6 . . . . . 67 4 . 45 Level 1 24 | . 21 . 11 29 . 31 28 24 76 35 . . . . . 20 23 32 . 23 . 26 49 41 40 Level 2 28 | . . . 19 29 . . . 20 23 18 100 . . . . 30 76 33 100 21 100 6 46 58 13 Level 3 20 | . . . 29 . . . . 36 . 31 . . . . . 42 . 34 . 55 . . . . . Level 4 . | . . . 3 . . . . . . 6 . . . . . . . . . . . . . . . Level 5 . | . . . . . . . . . . . . . . . . . . . . . . . . . . High Security . | . . . . . . . . . . . . . . . . . . . . . . . . . . Max Security . | . . . . . . . . . . . . . . . . . . . . . . . . . . Squads Dispatched 26 | . . . 5 . . . 3 . 2 . 4 . . . 3 . . . 4 . 2 2 . . 1 Investigation 1 | . . . . . . . . . 1 . . . . . . . . . . . . . . . . Extermination 3 | . . . . . . . . . . . 2 . . . . . . . 1 . . . . . . Reinforcement 14 | . . . 3 . . . 3 . 1 . 1 . . . 2 . . . . . 1 2 . . 1 Assault 5 | . . . 2 . . . . . . . 1 . . . . . . . 1 . 1 . . . . Garrison 3 | . . . . . . . . . . . . . . . 1 . . . 2 . . . . . . Intercept . | . . . . . . . . . . . . . . . . . . . . . . . . . . Searches Triggered . | . . . . . . . . . . . . . . . . . . . . . . . . . . Construction Impeded 3 | . . . . . . . 2 . . . . . . . . . . . . . 1 . . . . Haulers Reinforced 1 | . . . . . . . . . . . . . . . 1 . . . . . . . . . . Active Scanning Responses . | . . . . . . . . . . . . . . . . . . . . . . . . . . Cargo Convoy Interrupts . | . . . . . . . . . . . . . . . . . . . . . . . . . . Stealth | -11 -10 -10 -9 -9 -9 -8 -8 -8 -8 -8 -7 -7 -7 -6 -6 -6 -6 -6 -5 -5 -5 -5 -5 -5 -5 --------- Run | Scr Mat Min Mat Min Exi Min Mat Gar Mat Gar Fac Low Dat Pro Fac Gar Fac Gar Fac Gar Fac Ext Cet Arc Hub Distress Signals 13 | . . . 3 . . . 1 1 1 1 . . . . 1 . . . 1 . . 4 . . . Communications Jammed 28 | . . . . . . . . . . . . . . . . . . . . . . . . . 28 Distress Signals 28 | . . . . . . . . . . . . . . . . . . . . . . . . . 28 Times Spotted 445 | . 9 5 61 . 1 9 25 27 15 35 8 1 4 . 19 43 2 27 36 32 11 32 26 4 13 Peak Tracking Total 9 | . 3 3 9 . 4 4 3 5 5 7 4 1 2 . 6 9 2 4 7 7 6 6 5 2 4 Tactical Retreats 32 | . . 1 4 . . 1 2 2 1 1 1 . . . 4 2 . 4 1 7 . 1 . . . Traps | -11 -10 -10 -9 -9 -9 -8 -8 -8 -8 -8 -7 -7 -7 -6 -6 -6 -6 -6 -5 -5 -5 -5 -5 -5 -5 ------- Run | Scr Mat Min Mat Min Exi Min Mat Gar Mat Gar Fac Low Dat Pro Fac Gar Fac Gar Fac Gar Fac Ext Cet Arc Hub Traps Triggered 26 | . . . 1 . . . . 5 1 4 1 . . . 1 2 1 4 . 4 1 1 . . . Indirectly . | . . . . . . . . . . . . . . . . . . . . . . . . . . Trap Hack Attempts . | . . . . . . . . . . . . . . . . . . . . . . . . . . Triggered . | . . . . . . . . . . . . . . . . . . . . . . . . . . Disarmed . | . . . . . . . . . . . . . . . . . . . . . . . . . . Reprogrammed . | . . . . . . . . . . . . . . . . . . . . . . . . . . Reused . | . . . . . . . . . . . . . . . . . . . . . . . . . . Traps Extracted . | . . . . . . . . . . . . . . . . . . . . . . . . . . Installed . | . . . . . . . . . . . . . . . . . . . . . . . . . . Triggered . | . . . . . . . . . . . . . . . . . . . . . . . . . . Most Traps Carried 3 | . . . . 3 3 3 3 2 . . . . . . . . . . . . . . . . . Exploded 1 | . . . . . 1 . . . . . . . . . . . . . . . . . . . . Machines | -11 -10 -10 -9 -9 -9 -8 -8 -8 -8 -8 -7 -7 -7 -6 -6 -6 -6 -6 -5 -5 -5 -5 -5 -5 -5 ---------- Run | Scr Mat Min Mat Min Exi Min Mat Gar Mat Gar Fac Low Dat Pro Fac Gar Fac Gar Fac Gar Fac Ext Cet Arc Hub Machines Disabled 48 | . 1 . 4 . . . 1 3 2 3 4 . . . . 5 . 5 2 6 1 1 2 1 7 Max in Single Turn 2 | . 1 . 2 . . . 1 1 1 1 1 . . . . 1 . 1 . 1 1 . 1 1 2 Garrison Relay 13 | . . . . . . . . 2 . 2 . . . . . 3 . 3 . 3 . . . . . Machines Sabotaged . | . . . . . . . . . . . . . . . . . . . . . . . . . . Garrisons Compromised . | . . . . . . . . . . . . . . . . . . . . . . . . . . Overloaded Fab Kills . | . . . . . . . . . . . . . . . . . . . . . . . . . . Hacking | -11 -10 -10 -9 -9 -9 -8 -8 -8 -8 -8 -7 -7 -7 -6 -6 -6 -6 -6 -5 -5 -5 -5 -5 -5 -5 --------- Run | Scr Mat Min Mat Min Exi Min Mat Gar Mat Gar Fac Low Dat Pro Fac Gar Fac Gar Fac Gar Fac Ext Cet Arc Hub Machines Accessed 51 | . . . 7 . 2 . 6 2 5 2 1 . 3 . 1 1 2 2 3 2 1 8 1 . 2 Terminals 40 | . . . 7 . . . 5 2 4 2 1 . . . . 1 1 2 2 2 1 7 1 . 2 Fabricators . | . . . . . . . . . . . . . . . . . . . . . . . . . . Repair Stations 1 | . . . . . . . . . . . . . . . . . . . . . . 1 . . . Recycling Units . | . . . . . . . . . . . . . . . . . . . . . . . . . . Scanalyzers . | . . . . . . . . . . . . . . . . . . . . . . . . . . Garrison Access 5 | . . . . . . . 1 . 1 . . . . . 1 . 1 . 1 . . . . . . Total Hacks 128 | . . . 19 . 2 . 11 2 15 4 4 . 23 . 1 1 5 5 6 4 2 20 1 . 3 Successful 64 | . . . 8 . 2 . 2 2 6 1 1 . 23 . 1 1 3 1 3 1 . 8 . . 1 Failed 64 | . . . 11 . . . 9 . 9 3 3 . . . . . 2 4 3 3 2 12 1 . 2 Catastrophic 12 | . . . 1 . . . 2 . 1 1 . . . . . . 2 . 1 . . 2 1 . 1 Database Lockouts . | . . . . . . . . . . . . . . . . . . . . . . . . . . Manual 38 | . . . 9 . 1 . 4 . 12 . . . . . . . 4 . 1 . . 6 1 . . Terminals 96 | . . . 19 . . . 10 2 14 4 4 . . . . 1 4 5 5 4 2 18 1 . 3 Fabricators . | . . . . . . . . . . . . . . . . . . . . . . . . . . Repair Stations 2 | . . . . . . . . . . . . . . . . . . . . . . 2 . . . Recycling Units . | . . . . . . . . . . . . . . . . . . . . . . . . . . Scanalyzers . | . . . . . . . . . . . . . . . . . . . . . . . . . . Garrison Access 5 | . . . . . . . 1 . 1 . . . . . 1 . 1 . 1 . . . . . . Terminal Hacks 56 | . . . 8 . 2 . 1 2 5 1 1 . 23 . . 1 2 1 2 1 . 5 . . 1 Record 7 | . . . . . 1 . . . . . . . 6 . . . . . . . . . . . . Part Schematic 9 | . . . . . . . . . . . . . 9 . . . . . . . . . . . . Robot Schematic 5 | . . . . . . . . . . . . . 5 . . . . . . . . . . . . Robot Analysis 2 | . . . 2 . . . . . . . . . . . . . . . . . . . . . . Prototype ID Bank 4 | . . . 1 . . . . . . . . . 3 . . . . . . . . . . . . Open Door 3 | . . . . . . . . 1 . . . . . . . . . . . . . 2 . . . Branch Access Points 1 | . . . . . . . . . . . 1 . . . . . . . . . . . . . . Emergency Access Points 5 | . . . . . . . . 1 . 1 . . . . . 1 . 1 . 1 . . . . . Terminal Index 2 | . . . 1 . . . . . . . . . . . . . . . . . . 1 . . . Unreport Threat 5 | . . . . . . . 1 . 2 . . . . . . . 2 . . . . . . . . Locate Traps 2 | . . . . . . . . . . . . . . . . . . . 1 . . 1 . . . Recall Reinforcements 1 | . . . . . . . . . . . . . . . . . . . . . . 1 . . . Hauler Manifests 2 | . . . 1 . . . . . 1 . . . . . . . . . . . . . . . . Zone Layout 7 | . . . 3 . . . . . 2 . . . . . . . . . 1 . . . . . 1 EX-Prototype ID Bank 1 | . . . . . 1 . . . . . . . . . . . . . . . . . . . . Fabricator Hacks . | . . . . . . . . . . . . . . . . . . . . . . . . . . Repair Station Hacks 2 | . . . . . . . . . . . . . . . . . . . . . . 2 . . . Scan Component 1 | . . . . . . . . . . . . . . . . . . . . . . 1 . . . Repair 1 | . . . . . . . . . . . . . . . . . . . . . . 1 . . . Recycling Unit Hacks . | . . . . . . . . . . . . . . . . . . . . . . . . . . Scanalyzer . | . . . . . . . . . . . . . . . . . . . . . . . . . . Garrison Access Hacks 5 | . . . . . . . 1 . 1 . . . . . 1 . 1 . 1 . . . . . . Unlock Access 5 | . . . . . . . 1 . 1 . . . . . 1 . 1 . 1 . . . . . . Unauthorized Hacks 1 | . . . . . . . . . . . . . . . . . . . . . . 1 . . . Terminals 1 | . . . . . . . . . . . . . . . . . . . . . . 1 . . . Botnet 1 | . . . . . . . . . . . . . . . . . . . . . . 1 . . . Fabricators . | . . . . . . . . . . . . . . . . . . . . . . . . . . Repair Stations . | . . . . . . . . . . . . . . . . . . . . . . . . . . Recycling Units . | . . . . . . . . . . . . . . . . . . . . . . . . . . Scanalyzers . | . . . . . . . . . . . . . . . . . . . . . . . . . . Garrison Access . | . . . . . . . . . . . . . . . . . . . . . . . . . . Data Cores Recovered 1 | . . . 1 . . . . . . . . . . . . . . . . . . . . . . Used . | . . . . . . . . . . . . . . . . . . . . . . . . . . Hacking Detections 40 | . . . 7 . . . 6 1 4 1 1 . . . 1 . 2 2 3 1 1 7 1 . 2 Full Trace Events 1 | . . . 1 . . . . . . . . . . . . . . . . . . . . . . Feedback Events 1 | . . . 1 . . . . . . . . . . . . . . . . . . . . . . Corruption 1 | . . . 1 . . . . . . . . . . . . . . . . . . . . . . Feedback Blocked . | . . . . . . . . . . . . . . . . . . . . . . . . . . Robot Schematics Acquired 5 | . . . . . . . . . . . . . 5 . . . . . . . . . . . . Robots Built . | . . . . . . . . . . . . . . . . . . . . . . . . . . Authchips . | . . . . . . . . . . . . . . . . . . . . . . . . . . Time . | . . . . . . . . . . . . . . . . . . . . . . . . . . Total Robot Build Rating . | . . . . . . . . . . . . . . . . . . . . . . . . . . Part Schematics Acquired 9 | . . . . . . . . . . . . . 9 . . . . . . . . . . . . Parts Built . | . . . . . . . . . . . . . . . . . . . . . . . . . . Authchips . | . . . . . . . . . . . . . . . . . . . . . . . . . . Time . | . . . . . . . . . . . . . . . . . . . . . . . . . . Total Part Build Rating . | . . . . . . . . . . . . . . . . . . . . . . . . . . Parts Repaired 1 | . . . . . . . . . . . . . . . . . . . . . . 1 . . . Time 56 | . . . . . . . . . . . . . . . . . . . . . . 56 . . . Parts Recycled . | . . . . . . . . . . . . . . . . . . . . . . . . . . Recycled Matter . | . . . . . . . . . . . . . . . . . . . . . . . . . . Retrieved Matter . | . . . . . . . . . . . . . . . . . . . . . . . . . . Retrieved Components . | . . . . . . . . . . . . . . . . . . . . . . . . . . Parts Scanalyzed . | . . . . . . . . . . . . . . . . . . . . . . . . . . Part Schematics Acquired . | . . . . . . . . . . . . . . . . . . . . . . . . . . Parts Damaged . | . . . . . . . . . . . . . . . . . . . . . . . . . . Bothacking | -11 -10 -10 -9 -9 -9 -8 -8 -8 -8 -8 -7 -7 -7 -6 -6 -6 -6 -6 -5 -5 -5 -5 -5 -5 -5 ------------ Run | Scr Mat Min Mat Min Exi Min Mat Gar Mat Gar Fac Low Dat Pro Fac Gar Fac Gar Fac Gar Fac Ext Cet Arc Hub Used RIF Installer 5 | . . . . . . . . 1 . 1 . . . . . 1 . 1 . 1 . . . . . Hotswap 1 | . . . . . . . . . . . . . . . . 1 . . . . . . . . . Threat Obfuscator 1 | . . . . . . . . . . . . . . . . . . . . 1 . . . . . Watcher Feeds 1 | . . . . . . . . . . 1 . . . . . . . . . . . . . . . Patrol Navigation 1 | . . . . . . . . . . . . . . . . . . 1 . . . . . . . Robots Hacked 66 | . . . . . . . . . . 2 3 . . . 5 2 2 5 16 9 4 17 . 1 . Non-combat 9 | . . . . . . . . . . . 3 . . . . . . . 1 . 2 3 . . . Combat 57 | . . . . . . . . . . 2 . . . . 5 2 2 5 15 9 2 14 . 1 . Robot Hacks Applied 70 | . . . . . . . . . . 2 3 . . . 5 2 2 6 16 10 6 17 . 1 . drop_inventory 1 | . . . . . . . . . . . . . . . . . . . . . . 1 . . . purge_threat 1 | . . . . . . . . . . . . . . . . . . . . . . 1 . . . reboot_propulsion 1 | . . . . . . . . . . . . . . . . . . . 1 . . . . . . overload_power 1 | . . . . . . . . . . . . . . . . . . . . . . . . 1 . amplify_resonance 9 | . . . . . . . . . . . . . . . . . . 1 2 2 3 1 . . . reboot_system 4 | . . . . . . . . . . . . . . . . 1 . . 1 . . 2 . . . go_dormant 2 | . . . . . . . . . . . . . . . . . . 2 . . . . . . . overwrite_iff 23 | . . . . . . . . . . 1 . . . . 3 1 1 2 7 2 2 4 . . . formatsys_low 5 | . . . . . . . . . . . 3 . . . . . . . . . 1 1 . . . formatsys_high 23 | . . . . . . . . . . 1 . . . . 2 . 1 1 5 6 . 7 . . . Relay Couplers Released 52 | . . . . . . . . 6 . 9 . . . . . 12 . 12 . 13 . . . . . Machine Destruction 52 | . . . . . . . . 6 . 9 . . . . . 12 . 12 . 13 . . . . . Attached 19 | . . . . . . . . . . 1 1 . . . 2 3 1 3 2 3 1 2 . . . Fabnet Peak Effective % . | . . . . . . . . . . . . . . . . . . . . . . . . . . Robots Rewired 40 | . . . . . . . . 8 . 6 . . . . . 3 . . . 1 . 22 . . . Allies Hacked . | . . . . . . . . . . . . . . . . . . . . . . . . . . Hacks Repelled . | . . . . . . . . . . . . . . . . . . . . . . . . . . Allies | -11 -10 -10 -9 -9 -9 -8 -8 -8 -8 -8 -7 -7 -7 -6 -6 -6 -6 -6 -5 -5 -5 -5 -5 -5 -5 -------- Run | Scr Mat Min Mat Min Exi Min Mat Gar Mat Gar Fac Low Dat Pro Fac Gar Fac Gar Fac Gar Fac Ext Cet Arc Hub Total Allies 100 | . . . . 1 . . . 8 . 8 3 . . . 5 4 2 3 12 9 3 37 5 . . Largest Group 21 | . . . . 1 . . . 5 . 5 2 1 1 . 1 3 2 2 3 2 3 21 20 5 5 Highest-Rated Group 1008 | . . . . 31 . . . 77 . 143 37 23 23 . 29 129 76 67 144 134 157 838 1008 346 346 Highest-Rated Ally 159 | . . . . 31 . . . 25 . 40 23 23 23 . 29 43 47 47 65 85 85 159 159 96 96 Total Orders 17 | . . . . . . . . 1 . . 1 1 . . . . . . 1 4 1 8 . . . STAY 8 | . . . . . . . . 1 . . . . . . . . . . 1 2 . 4 . . . FOLLOW 5 | . . . . . . . . . . . . . . . . . . . . 2 . 3 . . . AID 4 | . . . . . . . . . . . 1 1 . . . . . . . . 1 1 . . . Ally Attacks 515 | . . . . . . . . 33 . 27 . . . . 20 28 5 18 40 28 9 86 152 12 57 Total Damage 14149 | . . . . . . . . 642 . 675 . . . . 476 842 116 402 1054 934 365 1760 4586 373 1924 Kills 100 | . . . . . . . . 7 . 6 . . . . 2 3 1 1 8 5 4 19 30 3 11 Allies Corrupted 3 | . . . . . . . . . . . . . . . . . . 1 . 1 . . . . 1 Allies Melted 1 | . . . . . . . . . . . . . . . . . . . . . . 1 . . . Intel | -11 -10 -10 -9 -9 -9 -8 -8 -8 -8 -8 -7 -7 -7 -6 -6 -6 -6 -6 -5 -5 -5 -5 -5 -5 -5 ------- Run | Scr Mat Min Mat Min Exi Min Mat Gar Mat Gar Fac Low Dat Pro Fac Gar Fac Gar Fac Gar Fac Ext Cet Arc Hub Robot Analysis Total 133 | . . . 2 . . . . . . . . . 131 . . . . . . . . . . . . Derelict Logs Recovered 5 | . . 1 . 2 . . . . . . . 2 . . . . . . . . . . . . . Drone Launches . | . . . . . . . . . . . . . . . . . . . . . . . . . . Drone Recoveries . | . . . . . . . . . . . . . . . . . . . . . . . . . . Exploration | -11 -10 -10 -9 -9 -9 -8 -8 -8 -8 -8 -7 -7 -7 -6 -6 -6 -6 -6 -5 -5 -5 -5 -5 -5 -5 ------------- Run | Scr Mat Min Mat Min Exi Min Mat Gar Mat Gar Fac Low Dat Pro Fac Gar Fac Gar Fac Gar Fac Ext Cet Arc Hub Turns Passed 22383 | 4 380 386 1928 1345 478 614 1148 1893 562 1929 651 266 562 516 279 1707 138 1426 897 2039 509 1639 758 139 190 Spaces Moved 9154 | 1 180 148 853 631 300 456 455 652 200 601 332 147 216 295 106 725 73 583 323 590 209 695 282 46 55 Core . | . . . . . . . . . . . . . . . . . . . . . . . . . . Treads 3130 | . 145 140 765 . . . . . . 8 . . 77 11 . 268 . . . 429 209 695 282 46 55 Legs 36 | 1 35 . . . . . . . . . . . . . . . . . . . . . . . . Wheels 5988 | . . 8 88 631 300 456 455 652 200 593 332 147 139 284 106 457 73 583 323 161 . . . . . Hover . | . . . . . . . . . . . . . . . . . . . . . . . . . . Flight . | . . . . . . . . . . . . . . . . . . . . . . . . . . Fastest Speed 120 | 120 120 120 120 210 120 120 120 210 225 210 165 165 150 165 165 150 150 150 195 165 165 165 165 245 165 Average Speed 183 | 120 152 158 164 210 157 120 177 217 225 228 165 165 161 167 165 154 153 164 202 248 165 165 238 245 243 Slowest Speed 315 | 120 160 240 240 210 195 120 210 225 225 240 165 165 240 240 225 165 165 240 285 315 165 165 245 245 245 Overloaded Moves . | . . . . . . . . . . . . . . . . . . . . . . . . . . Propulsion Burnouts . | . . . . . . . . . . . . . . . . . . . . . . . . . . Robots Hopped . | . . . . . . . . . . . . . . . . . . . . . . . . . . Cave-ins Triggered . | . . . . . . . . . . . . . . . . . . . . . . . . . . Exploration Rate (%) 47 | 2 30 27 77 95 61 94 48 69 26 67 12 28 81 53 4 59 3 57 11 63 10 94 73 64 18 Regions Visited 25 Branch Regions 11 Pre-discovered Areas 26 | . . 1 . . 1 . . . . . . . 24 . . . . . . . . . . . . Known Exits Taken 7 | . . . . . . . 1 . 1 . 1 . . 1 1 . 1 . 1 . . . . . . Unknown Exits Taken 13 | 1 1 1 1 1 1 1 . . . . . 1 1 . . . . . . . 1 1 1 1 . Scrap Searched 6 | . . 1 . 2 . 1 . . . . . 2 . . . . . . . . . . . . . Spaces Dug 126 | . . 9 1 1 . 12 3 11 . 38 2 . . 3 1 7 . 14 3 3 8 3 . . 7 Terrain Destroyed 482 | . . 23 63 1 . 29 31 46 15 66 39 2 1 3 3 86 . 22 5 15 11 5 3 2 11 Melee 40 | . . . 1 1 . . . 8 . 5 2 . . . . 3 . . 3 3 4 3 . . 7 Projectile 106 | . . . . . . . 5 4 15 4 5 2 1 3 3 10 . 22 2 12 7 2 3 2 4 AOE 336 | . . 23 62 . . 29 26 34 . 57 32 . . . . 73 . . . . . . . . . Terrain Rammed . | . . . . . . . . . . . . . . . . . . . . . . . . . . Walls Destroyed . | . . . . . . . . . . . . . . . . . . . . . . . . . . Machines Disabled . | . . . . . . . . . . . . . . . . . . . . . . . . . . Actions | -11 -10 -10 -9 -9 -9 -8 -8 -8 -8 -8 -7 -7 -7 -6 -6 -6 -6 -6 -5 -5 -5 -5 -5 -5 -5 --------- Run | Scr Mat Min Mat Min Exi Min Mat Gar Mat Gar Fac Low Dat Pro Fac Gar Fac Gar Fac Gar Fac Ext Cet Arc Hub Total 12892 | 4 245 286 1163 643 303 488 659 960 267 924 401 172 375 311 196 1090 93 897 504 919 335 1148 365 63 81 Wait 1415 | . 13 123 109 2 . 8 86 42 35 53 22 13 87 12 71 92 10 131 107 93 81 162 49 9 5 Move 9133 | . 179 148 852 630 299 455 454 651 199 600 331 146 215 294 106 724 73 582 323 589 208 694 281 45 55 Hop . | . . . . . . . . . . . . . . . . . . . . . . . . . . Pick Up 184 | . 14 . 11 6 . . 11 14 2 16 7 5 7 . 1 29 1 21 2 21 2 8 6 . . Fast Attach 61 | . 4 . 5 . . . 7 4 . 3 1 . 2 . . 6 . 6 4 10 . 3 4 . 2 Attach 82 | . 2 . 3 . . 2 4 3 . 7 3 . 6 . 2 21 . 8 10 10 . . . . 1 Detach 14 | . . . . . 1 . 1 . . . . . 3 . . 2 . 2 1 3 . 1 . . . Swap 224 | 1 1 6 31 . 2 3 17 26 4 27 9 1 8 . 2 18 3 15 5 22 7 5 6 2 3 Drop 166 | 3 6 1 26 . . . 7 29 3 13 5 5 8 . . 8 1 18 1 13 1 4 13 1 . Fire 1031 | . 26 7 122 . . 16 72 88 24 116 17 2 39 5 14 135 3 90 42 123 32 40 5 6 7 Melee 128 | . . . 1 5 1 4 . 15 . 14 6 . . . . 10 2 . 9 33 4 15 1 . 8 Ram . | . . . . . . . . . . . . . . . . . . . . . . . . . . Kick . | . . . . . . . . . . . . . . . . . . . . . . . . . . Crush 4 | . . 1 3 . . . . . . . . . . . . . . . . . . . . . . Escape Stasis 76 | . . . . . . . . 24 . 12 . . . . . 16 . 24 . . . . . . . Rewire 374 | . . . . . . . . 64 . 63 . . . . . 29 . . . 2 . 216 . . . Trap . | . . . . . . . . . . . . . . . . . . . . . . . . . . Miscellaneous . | . . . . . . . . . . . . . . . . . . . . . . . . . . Route ------- -11/Scrapyard -10/Materials -10/Mines -9/Materials (discovered 3 exits: *Mat x2 / [*Min]) -9/Mines (discovered 3 exits: *Mat x2 / *Exi) -9/Exiles -8/Mines (discovered 2 exits: *Mat x2) -8/Materials (discovered 4 exits: *Fac / [*Sto x2] / Gar) -8/Garrison (discovered 3 exits: *Mat x3) -8/Materials (discovered 2 exits: *Fac / Gar) -8/Garrison -7/Factory (discovered 2 exits: *Low x2) -7/Lower Caves -7/Data Miner -6/Proximity Caves -6/Factory -6/Garrison (discovered 3 exits: *Fac x2 / *Fac) -6/Factory (discovered 2 exits: [*Low] / Gar) -6/Garrison (discovered 2 exits: *Fac x2) -5/Factory (discovered 3 exits: Upp / Ext / Gar) -5/Garrison (discovered 2 exits: *Fac x2) -5/Factory -5/Extension (discovered 2 exits: [*Fac] / *Cet) -5/Cetus (discovered 2 exits: [*Fac] / [*Arc]) -5/Archives -5/Hub_04(d) History --------- Turn | Location | Event 5 | -11/Scrapyard | Discovered new exit (range 0) 5 | -11/Scrapyard | Entered Materials 303 | -10/Materials | Build established: Mutant 377 | -10/Materials | Discovered new exit (range 6) 385 | -10/Materials | Entered Mines 431 | -10/Mines | Assembled infested the area 436 | -10/Mines | Assisted by a Guerilla fighting off Assembled 609 | -10/Mines | Learned location of Zion (-6) 687 | -10/Mines | Discovered new exit (range 8) 771 | -10/Mines | Entered Materials 771 | -9/Materials | Evolved 2 slots: Propulsion x1, Utility x1 1154 | -9/Materials | Destroyed 8 combat bots 1516 | -9/Materials | Discovered new exit (range 15) 1697 | -9/Materials | Discovered new exit (range 15) 1707 | -9/Materials | Destroyed 8 combat bots 1971 | -9/Materials | First assault squad dispatched 2222 | -9/Materials | Build established: Scavenger-Mutant 2661 | -9/Materials | Discovered new exit (range 16) 2699 | -9/Materials | Entered Mines 2825 | -9/Mines | Build established: Mutant 2840 | -9/Mines | Found a hidden stash of uninstalled traps 3058 | -9/Mines | Learned Materials trap positions 3132 | -9/Mines | Discovered new exit (range 6) 3177 | -9/Mines | Discovered new exit (range 6) 3214 | -9/Mines | Deemed a non-threat by the Exiles lab entrance 3214 | -9/Mines | Discovered new exit (range 5) 3318 | -9/Mines | Received a Mining Laser from a helpful Derelict 3897 | -9/Mines | Learned location of 1 exit from Proximity Caves 4044 | -9/Mines | Entered Exiles 4098 | -9/Exiles | Met 8R-AWN 4125 | -9/Exiles | Met EX-HEX 4201 | -9/Exiles | Met EX-DEC 4357 | -9/Exiles | Met EX-BIN 4371 | -9/Exiles | Aligned with FarCom system 4372 | -9/Exiles | Given EX-Vault access code 4401 | -9/Exiles | Opened EX-Vault 4426 | -9/Exiles | Warned to stay clear of 0b10 Research branches 4450 | -9/Exiles | Exiles lab attacked by MAIN.C 4506 | -9/Exiles | Discovered new exit (range 10) 4519 | -9/Exiles | Attacked by the Exiles 4521 | -9/Exiles | Core integrity fell below 50% 4522 | -9/Exiles | Entered Mines 4667 | -8/Mines | Discovered new exit (range 5) 5117 | -8/Mines | Discovered new exit (range 11) 5136 | -8/Mines | Entered Materials 5136 | -8/Materials | Evolved 2 slots: Utility x2 5137 | -8/Materials | Loaded intel: 8 trap records 5158 | -8/Materials | Discovered new exit (range 16) 5655 | -8/Materials | Destroyed 10 combat bots 5664 | -8/Materials | Lost 3 parts (1n2u) 5712 | -8/Materials | Discovered new exit (range 3) 5841 | -8/Materials | Discovered new exit (range 18) 6273 | -8/Materials | Identified exit to Garrison 6284 | -8/Materials | Entered Garrison 6316 | -8/Garrison | Triggered checkpoint 6397 | -8/Garrison | Discovered new exit (range 5) 6618 | -8/Garrison | Triggered checkpoint 6851 | -8/Garrison | Installed Relay Interface Framework 6938 | -8/Garrison | Discovered new exit (range 10) 6950 | -8/Garrison | Triggered checkpoint 7116 | -8/Garrison | Garrison Relay disabled 7192 | -8/Garrison | Triggered checkpoint 7381 | -8/Garrison | Garrison Relay disabled 7484 | -8/Garrison | Triggered checkpoint 7643 | -8/Garrison | Discovered new exit (range 10) 7665 | -8/Garrison | Build established: Scavenger-Mutant 7988 | -8/Garrison | Triggered checkpoint 8177 | -8/Garrison | Entered Materials 8634 | -8/Materials | Build established: Mutant 8714 | -8/Materials | Discovered new exit (range 16) 8728 | -8/Materials | Identified exit to Garrison 8739 | -8/Materials | Entered Garrison 9358 | -8/Garrison | Triggered checkpoint 9414 | -8/Garrison | Core integrity fell below 50% 9537 | -8/Garrison | Triggered checkpoint 9537 | -8/Garrison | Triggered checkpoint 9544 | -8/Garrison | Triggered checkpoint 9739 | -8/Garrison | Discovered new exit (range 8) 9787 | -8/Garrison | Build established: Bothacker-Mutant 9943 | -8/Garrison | Triggered checkpoint 10050 | -8/Garrison | Garrison Relay disabled 10449 | -8/Garrison | Expanded RIF knowledge: Watcher Feeds 10455 | -8/Garrison | Core integrity fell below 20% 10668 | -8/Garrison | Entered Factory 10668 | -7/Factory | Evolved 2 slots: Propulsion x1, Weapon x1 10966 | -7/Factory | P-60 Hacker assimilated allied Smith 4a 11068 | -7/Factory | First assault squad dispatched 11085 | -7/Factory | Identified exit to Lower Caves 11319 | -7/Factory | Entered Lower Caves 11319 | -7/Lower Caves | Accompanied by 1 ally 11384 | -7/Lower Caves | Learned Factory stockpile data 11578 | -7/Lower Caves | A Derelict revealed a hidden shortcut to meet someone special 11585 | -7/Lower Caves | Entered Data Miner 11585 | -7/Data Miner | Accompanied by 1 ally 11587 | -7/Data Miner | Discovered new exit (range 6) 11615 | -7/Data Miner | Met Data Miner 11646 | -7/Data Miner | Learned location of Section 7 (-2) 11646 | -7/Data Miner | Acquired the access code to Warlord's prototype stash 11669 | -7/Data Miner | Received God Mode back door access code from Data Miner 11794 | -7/Data Miner | Interfaced with the Data Conduit 12147 | -7/Data Miner | Entered Proximity Caves 12148 | -6/Proximity Caves | Identified exit to Factory 12160 | -6/Proximity Caves | Spotted B-75 Beast 12437 | -6/Proximity Caves | Build established: Scavenger-Gunner 12663 | -6/Proximity Caves | Entered Factory 12663 | -6/Factory | Evolved 2 slots: Utility x2 12665 | -6/Factory | Loaded intel: 225 machine locations 12858 | -6/Factory | Build established: Scavenger-Mutant 12880 | -6/Factory | Garrison activated, responded to threat 12942 | -6/Factory | Identified exit to Garrison 12942 | -6/Factory | Entered Garrison 12943 | -6/Garrison | Loaded intel: 24 machine locations 12967 | -6/Garrison | System corruption reached 10% 13010 | -6/Garrison | Lost 11 parts (1p4n5u1w) 13036 | -6/Garrison | Triggered checkpoint 13344 | -6/Garrison | Triggered checkpoint 13423 | -6/Garrison | Lost 9 parts (1p4n2u2w) 13485 | -6/Garrison | Destroyed 17 combat bots 13532 | -6/Garrison | Discovered new exit (range 12) 13553 | -6/Garrison | Expanded RIF knowledge: Hotswap 13630 | -6/Garrison | Triggered checkpoint 13651 | -6/Garrison | Garrison Relay disabled 13653 | -6/Garrison | Build established: Mutant 13730 | -6/Garrison | Triggered checkpoint 13763 | -6/Garrison | Discovered new exit (range 5) 13911 | -6/Garrison | Triggered checkpoint 13958 | -6/Garrison | Build established: Bothacker-Mutant 14134 | -6/Garrison | Triggered checkpoint 14252 | -6/Garrison | Triggered checkpoint 14276 | -6/Garrison | Garrison Relay disabled 14315 | -6/Garrison | Discovered new exit (range 10) 14649 | -6/Garrison | Entered Factory 14649 | -6/Factory | Accompanied by 1 ally 14650 | -6/Factory | Loaded intel: 279 machine locations 14722 | -6/Factory | Discovered new exit (range 6) 14787 | -6/Factory | Identified exit to Garrison 14787 | -6/Factory | Entered Garrison 14787 | -6/Garrison | Accompanied by 1 ally 14788 | -6/Garrison | Loaded intel: 31 machine locations 14838 | -6/Garrison | Triggered checkpoint 14922 | -6/Garrison | Expanded RIF knowledge: Patrol Navigation 14952 | -6/Garrison | Garrison Relay disabled 15105 | -6/Garrison | Spotted B-75 Beast 15213 | -6/Garrison | Build established: Botlord-Gunner 15246 | -6/Garrison | Triggered checkpoint 15260 | -6/Garrison | Core integrity fell below 50% 15589 | -6/Garrison | Discovered new exit (range 8) 15703 | -6/Garrison | Triggered checkpoint 15743 | -6/Garrison | Garrison Relay disabled 15874 | -6/Garrison | Triggered checkpoint 15969 | -6/Garrison | Garrison Relay disabled 16049 | -6/Garrison | Build established: Botlord-Mutant 16196 | -6/Garrison | Discovered new exit (range 9) 16213 | -6/Garrison | Entered Factory 16213 | -5/Factory | Evolved 2 slots: Utility x2 16214 | -5/Factory | Identified exit to Upper Caves 16215 | -5/Factory | Loaded intel: 276 machine locations 16513 | -5/Factory | First assault squad dispatched 16869 | -5/Factory | Discovered new exit (range 9) 16978 | -5/Factory | Garrison activated, responded to threat 17029 | -5/Factory | Lost 4 parts (1p1n2w) 17110 | -5/Factory | Identified exit to Garrison 17110 | -5/Factory | Entered Garrison 17110 | -5/Garrison | Accompanied by 1 ally 17111 | -5/Garrison | Loaded intel: 38 machine locations 17185 | -5/Garrison | Spotted Executioner 17186 | -5/Garrison | Spotted Executioner 17224 | -5/Garrison | Destroyed Executioner 17229 | -5/Garrison | Core integrity fell below 50% 17244 | -5/Garrison | Destroyed Executioner 17246 | -5/Garrison | Lost 4 parts (1n1u2w) 17580 | -5/Garrison | Destroyed Striker 17631 | -5/Garrison | Destroyed Striker 17724 | -5/Garrison | Triggered checkpoint 17817 | -5/Garrison | Garrison Relay disabled 17854 | -5/Garrison | Garrison Relay disabled 18001 | -5/Garrison | Triggered checkpoint 18116 | -5/Garrison | Triggered checkpoint 18149 | -5/Garrison | Expanded RIF knowledge: Threat Obfuscation 18185 | -5/Garrison | Discovered new exit (range 11) 18437 | -5/Garrison | Triggered checkpoint 18466 | -5/Garrison | Garrison Relay disabled 18623 | -5/Garrison | Triggered checkpoint 18804 | -5/Garrison | Discovered new exit (range 23) 18854 | -5/Garrison | Spotted B-90 Cyclops 18942 | -5/Garrison | Rewired B-75 Beast 19023 | -5/Garrison | Allies destroyed B-90 Cyclops 19149 | -5/Garrison | Entered Factory 19149 | -5/Factory | Accompanied by 2 allies 19150 | -5/Factory | Loaded intel: 252 machine locations 19269 | -5/Factory | Spotted B-75 Beast 19279 | -5/Factory | Allies destroyed B-75 Beast 19449 | -5/Factory | First assault squad dispatched 19640 | -5/Factory | Discovered new exit (range 12) 19658 | -5/Factory | Entered Extension 19659 | -5/Extension | Loaded intel: 26 machine locations 19765 | -5/Extension | Core integrity fell below 20% 20426 | -5/Extension | Repaired Imp. Remote Datajack 20630 | -5/Extension | Warlord forces began an assault 20872 | -5/Extension | Rescued a captive Derelict 20872 | -5/Extension | Rescued a captive Derelict 21130 | -5/Extension | Rescued A7 21244 | -5/Extension | Discovered new exit (range 10) 21246 | -5/Extension | Discovered new exit (range 6) 21297 | -5/Extension | Entered Cetus 21297 | -5/Cetus | Accompanied by 19 allies (A7) 21298 | -5/Cetus | Loaded intel: 24 machine locations 21302 | -5/Cetus | Acquired a Cetus Manufacturing Module code from A7 21325 | -5/Cetus | Spotted Cetus Guard 21325 | -5/Cetus | Allies destroyed Cetus Guard 21326 | -5/Cetus | Spotted Cetus Guard 21326 | -5/Cetus | Spotted Cetus Guard 21332 | -5/Cetus | Allies destroyed Cetus Guard 21335 | -5/Cetus | Allies destroyed Cetus Guard 21335 | -5/Cetus | Allies destroyed Cetus Guard 21426 | -5/Cetus | Discovered new exit (range 38) 21449 | -5/Cetus | Started Cetus Manufacturing Module 21474 | -5/Cetus | Manufactured an Enhanced Grunt 21499 | -5/Cetus | Manufactured an Enhanced Grunt 21524 | -5/Cetus | Manufactured an Enhanced Grunt 21549 | -5/Cetus | Manufactured an Enhanced Grunt 21574 | -5/Cetus | Manufactured an Enhanced Grunt 21624 | -5/Cetus | Escorted A7 to Cetus Mainframe 21697 | -5/Cetus | Discovered new exit (range 27) 21706 | -5/Cetus | Spotted Cetus Guard 21706 | -5/Cetus | Spotted Cetus Guard 21709 | -5/Cetus | Spotted Cetus Guard 21709 | -5/Cetus | Spotted Cetus Guard 21709 | -5/Cetus | Allies destroyed Cetus Guard 21723 | -5/Cetus | Allies destroyed Cetus Guard 21724 | -5/Cetus | Allies destroyed Cetus Guard 21729 | -5/Cetus | Allies destroyed Cetus Guard 21742 | -5/Cetus | Met Revision 17 22055 | -5/Cetus | Entered Archives 22055 | -5/Archives | Accompanied by 5 allies 22056 | -5/Archives | Loaded intel: 8 machine locations 22133 | -5/Archives | Discovered new exit (range 16) 22194 | -5/Archives | Entered Hub_04(d) 22194 | -5/Hub_04(d) | Accompanied by 5 allies 22195 | -5/Hub_04(d) | Loaded intel: 98 machine locations 22384 | -5/Hub_04(d) | Destroyed by Enhanced Grunt with Neutron Cannon Last Messages --------------- 22377_ W-25 Informer distress signal jammed. 22378_ Centrium Medium Armor Plating severed. 22378_ Acquired Adv. KE Penetrator. 22378_ W-25 Informer distress signal jammed. 22380_ Slug penetrates C-35 Carver. 22380_ Slug penetrates Control Node. 22380_ Control Node disabled. 22380_ Slug penetrates C-35 Carver. 22380_ C-35 Carver destroyed. 22380_ W-25 Informer distress signal jammed. 22381_ K-01 Serf collects debris. 22381_ R-10 Processor collects Unknown Slashing Weapon. 22381_ W-25 Informer distress signal jammed. 22381_ K-01 Serf collects debris. 22382_ W-25 Informer distress signal jammed. 22383_ Power failure, Quantum Reactor shutdown. 22383_ U-05 Engineer builds a Wall. 22383_ W-25 Informer distress signal jammed. 22383_ Detecting nearby Garrison Access. 22384_ W-25 Informer distress signal jammed. Map ----- +----------------------------------------------------+ | #????# # " " " #" ???????????????????? | | #+########## # #" ?"?????????????????? | | + #" ?"?????????????????? | | #### #T ?"??????????"""??""" | | #??#########" ???????????????????? | | #+##+########## ############" ???????????????????? | | #???# ## #" ????????????"""??""" | | """" """" #???# / # ??????#????????????? | | """" """" #####+## " " " " #+#???? #????????????? | | """" """" ## # " " " " # #### ??????????????? | | """" """" "# "" # " " " " + ????????????????? | | "# "" # # ??????????????????? | | ########+#""! T" # # #???????????????????? | | !!! ## ### "" # # #???????????????????? | | !!! + #?# " ###########w###########??"??????? | | !! ####?# ##??????#Y #??"??????? | | " #????################ " #??"??????? | | " #?????????## """ # "G" #?????????? | | " ##?????????# !! "T" #u " " #??"??????? | | "#????????## !! R " #??"??????? | | ##????????#; k" " == #??"??????? | | ###"###?????????## =[ =! #?????????? | | #?????????#; " " %% = #???????""" | | "" #?????????## " "R !% " k " " #?????????? | | T" " #?????????# " " c R " " #???????""" | | " #?????????## ! %[@= " " " #?????????? | | " #??????????## [g #?????????? | | #???????????## % %%##+###+#######???####??? | | #????????????###!* % #??????? ??? | | #??????????????#%=[ #?????? ???? | | #######??????????????# =* ;#### #????? " ????? | | ?????????????????????## ####??# #???? """?????? | | ??????????????????????# ??????# #### """""????? | | ??????????????????????# ??????# + """""""???? | | ??????????????????????# ??????# + """""????? | | ??????????????????????#+#########+### """ ????? | | ??????????????????????# #??????" ???? | | ??????????????????????# #?????????????? | | ??????????????????????# """" #?????????????? | | ??????????????????????# """" #?????????????? | | ??????????????????????# """" #?????????????? | | ??????????????????????# """" #?????????????? | | ??????????????????????#"" #?????????????? | | ??????????????????????#"" """" #?????????????? | | ???????????????????????"T """" #?????????????? | | ???????????????????????"" """" #?????????????? | | ???????????????????????"" """" #?????????????? | | ???????????????????????? #?????????????? | | ????????????????????????##??#?######?????????????? | | ?????????????????????????????????????????????????? | +----------------------------------------------------+ Best States ------------- Heat Dissipation 75 Coolant Potential 145 Energy Generation 25 Energy Capacity 840 Matter Stores 300 Matter Capacity 300 Sight Range 20 Robot Scan Range 16 Terrain Scan Density 10 Jamming Range 14 Armor Coverage 900 Evasion (%) 55 Targeting Accuracy 8 Recoil Reduction 4 Particle Charging 15 Offensive Hacking 10 Relay Coupler Types 5 Relay Coupler Value 117 Item Schematics ----------------- Combat Drone Bay | -7/Data Miner | Free Lgt. Regenerative Plating | -7/Data Miner | Free Biomechanical Wings | -7/Data Miner | Free Gravity Neutralizer | -7/Data Miner | Free Com. Ion Cannon | -7/Data Miner | Free Field Propulsion Drive | -7/Data Miner | Free Adv. Shield Generator | -7/Data Miner | Free Imp. Remote Datajack | -7/Data Miner | Free Imp. Remote Shield | -7/Data Miner | Free Robot Schematics ------------------ H-66 Slayer | -7/Data Miner | Free A-15 Conveyor | -7/Data Miner | Free Y-54 Guardian | -7/Data Miner | Free M-14 Sweeper | -7/Data Miner | Free R-10 Processor | -7/Data Miner | Free Fabricated ------------ Nothing Alien Tech Used ----------------- None Achievements -------------- None Challenges ------------ None Game ------ Seed RemoteQuantumSubcomponent Manual? 0 Play Time 02:41:55 Cumulative 641.5 hours Start 2022.08.05 @ 00:51:01 End 2022.08.05 @ 03:56:15 Sessions 1 Manual Loads 0 Difficulty Rogue Special Mode None Game No. 604 Rogue 604 Adventurer 0 Explorer 0 Win Type - Total 23 Types 10/4/5/1/1/0/1/1/0 Lore% 91 Gallery% 95 Achievement% 77 Wizard Run 0 Options --------- ASCII 0 Keyboard 0 Movement Mouse Keybinds 1 Fullscreen 2 Font 24/Smallcaps Map View 76x50 Tactical HUD 1 Map Filters NONE Filters NONE Steam 1 RUN: a465e488-e77c-4f26-ac55-f7520be77990